[Event "XVII Orsha-2019 Open"]
[Site "Orsha"]
[Date "2019.01.21"]
[Round "6.35"]
[White "Simonian, Anna"]
[Black "Sychou, Dzmitry"]
[Result "0-1"]
[ECO "B28"]
[WhiteElo "1289"]
[BlackElo "1847"]
[PlyCount "124"]
[EventDate "2019.01.18"]
[EventType "swiss"]
[EventCountry "BLR"]
[TimeControl "5400+30"]

1. e4 c5 2. Nf3 a6 3. d4 cxd4 4. Nxd4 Nf6 5. Nc3 e5 6. Nb3 Bb4 7. Bd3 d5 8. Bd2 Bxc3 9. Bxc3 dxe4 10. Be2 Qxd1+ 11. Rxd1 Nc6 12. O-O O-O 13. Rd6 Ne8 14. Rd2 Nc7 15. Nc5 f5 16. Bc4+ Kh8 17. Bb3 Nb5 18. Nd7 Bxd7 19. Rxd7 Nxc3 20. bxc3 Rad8 21. Rxb7 Na5 22. Rb6 Nxb3 23. cxb3 Rf6 24. Rb7 h6 25. Re7 Rd2 26. Rxe5 Rxa2 27. Rd1 Ra3 28. Re8+ Kh7 29. Rb8 Rd6 30. Rc1 Ra2 31. Re8 Rdd2 32. Rf1 Rdb2 33. Re5 Kg6 34. b4 Rc2 35. c4 Rxc4 36. b5 a5 37. b6 Rb4 38. Re6+ Kf7 39. Rc6 Rab2 40. Rc7+ Kf6 41. Ra7 Ra2 42. b7 a4 43. h3 Rbb2 44. Rc1 e3 45. fxe3 Rxg2+ 46. Kf1 Rh2 47. Kg1 Rhb2 48. Rc6+ Kg5 49. Rc1 g6 50. Rd1 Kh4 51. Ra6 Kg5 52. h4+ Kh5 53. b8=Q Rxb8 54. Kh1 Rbb2 55. Kg1 g5 56. hxg5 hxg5 57. Ra5 Kg4 58. Rd4+ f4 59. Rd1 Rg2+ 60. Kf1 Raf2+ 61. Ke1 Kf3 62. exf4 Rg1# 0-1

[Event "XVII Orsha-2019 Open"]
[Site "Orsha"]
[Date "2019.01.21"]
[Round "6.36"]
[White "Dolgopyatov, Evgeniy"]
[Black "Poghosyan, Sarmen"]
[Result "1/2-1/2"]
[ECO "D03"]
[WhiteElo "1661"]
[BlackElo "1361"]
[PlyCount "52"]
[EventDate "2019.01.18"]
[EventType "swiss"]
[EventCountry "BLR"]
[TimeControl "5400+30"]

1. d4 d5 2. Nf3 Nf6 3. Bg5 e6 4. e3 Be7 5. Bd3 O-O 6. Nbd2 c5 7. c3 Nc6 8. O-O h6 9. Bh4 Nd7 10. Bg3 f5 11. Ne5 Ndxe5 12. dxe5 Bh4 13. Bxh4 Qxh4 14. f4 Qd8 15. Rf3 g5 16. Rh3 g4 17. Rxh6 Nxe5 18. Bc2 Kg7 19. Rh5 Nf7 20. h3 gxh3 21. Rxh3 Rh8 22. Qf3 Qf6 23. Rxh8 Nxh8 24. Qg3+ Qg6 25. Qxg6+ Nxg6 26. Nf3 Bd7 1/2-1/2

[Event "XVII Orsha-2019 Open"]
[Site "Orsha"]
[Date "2019.01.21"]
[Round "6.37"]
[White "Borodulin, Pavel"]
[Black "Gabdrakipov, Kirill"]
[Result "0-1"]
[ECO "D53"]
[WhiteElo "1481"]
[BlackElo "1901"]
[PlyCount "108"]
[EventDate "2019.01.18"]
[EventType "swiss"]
[EventCountry "BLR"]
[TimeControl "5400+30"]

1. d4 d5 2. c4 Nc6 3. Nc3 Nf6 4. Bg5 e6 5. e3 Be7 6. Nf3 h6 7. Bh4 Ne4 8. Bxe7 Qxe7 9. Nxe4 dxe4 10. Nd2 f5 11. Qh5+ Qf7 12. Qxf7+ Kxf7 13. Be2 b6 14. O-O Bb7 15. Rfd1 Rad8 16. Rac1 Ne7 17. c5 Bd5 18. a3 Rd7 19. Bb5 c6 20. Bc4 b5 21. Be2 a5 22. h3 Rb8 23. Kh2 a4 24. g3 Rdb7 25. Kg2 b4 26. Nc4 Bxc4 27. Bxc4 bxa3 28. bxa3 Rb2 29. Re1 Nd5 30. Kf1 Nc7 31. Re2 Rxe2 32. Kxe2 Rb2+ 33. Ke1 Ke7 34. Ra1 g5 35. Be2 Nd5 36. Bc4 Nc3 37. g4 f4 38. exf4 gxf4 39. h4 Nb1 40. g5 hxg5 41. hxg5 Nd2 42. Be2 f3 43. Bd1 e3 44. fxe3 f2+ 45. Kxf2 Nb3+ 46. Kf3 Nxa1 47. Bxa4 Nc2 48. Bxc2 Rxc2 49. Kf4 Ra2 50. e4 Rxa3 51. Ke5 Rf3 52. d5 cxd5 53. exd5 Rf5+ 54. Ke4 Rxd5 0-1

[Event "XVII Orsha-2019 Open"]
[Site "Orsha"]
[Date "2019.01.21"]
[Round "6.38"]
[White "Masterova, Daria"]
[Black "Vlasov, Andrey"]
[Result "0-1"]
[ECO "B12"]
[WhiteElo "1500"]
[BlackElo "2316"]
[PlyCount "126"]
[EventDate "2019.01.18"]
[EventType "swiss"]
[EventCountry "BLR"]
[TimeControl "5400+30"]

1. e4 c6 2. d4 d5 3. e5 Bf5 4. Bd3 Bxd3 5. Qxd3 e6 6. Be3 Nd7 7. Nf3 Ne7 8. O-O Nf5 9. Nbd2 c5 10. c3 c4 11. Qc2 b5 12. b4 Nb6 13. Bf4 Be7 14. h3 O-O 15. g4 Nh4 16. Nxh4 Bxh4 17. Kg2 a5 18. a3 Be7 19. Nf3 Ra7 20. h4 Qa8 21. Qb1 axb4 22. axb4 Na4 23. Bd2 Qb7 24. Rh1 Rfa8 25. g5 Rf8 26. Kg3 Qc7 27. Nh2 f6 28. f4 fxe5 29. fxe5 Bd8 30. Rf1 Rf7 31. g6 Rxf1 32. gxh7+ Kh8 33. Nxf1 g6 34. Qxg6 Qg7 35. h5 Qxg6+ 36. hxg6 Rg7 37. Ne3 Rxg6+ 38. Ng4 Kxh7 39. Rh1+ Kg7 40. Kf3 Bg5 41. Be1 Be7 42. Rh2 Bg5 43. Kg3 Bc1 44. Rc2 Bb2 45. Kf3 Rg5 46. Nf6 Rg1 47. Kf2 Rxe1 48. Kxe1 Bxc3+ 49. Rxc3 Nxc3 50. Ne8+ Kf7 51. Nd6+ Ke7 52. Kd2 Na2 53. Nxb5 Nxb4 54. Kc3 Nc6 55. Nd6 Kf8 56. Nb7 Kg7 57. Nd6 Kg6 58. Ne4 dxe4 59. Kxc4 Ne7 60. Kc5 Kg7 61. d5 exd5 62. Kd6 Kf7 63. e6+ Kf6 0-1

[Event "XVII Orsha-2019 Open"]
[Site "Orsha"]
[Date "2019.01.21"]
[Round "6.39"]
[White "Platnitski, Siarhei"]
[Black "Kulikov, Egor"]
[Result "1/2-1/2"]
[ECO "A31"]
[WhiteElo "1383"]
[BlackElo "1557"]
[PlyCount "85"]
[EventDate "2019.01.18"]
[EventType "swiss"]
[EventCountry "BLR"]
[TimeControl "5400+30"]

1. c4 b6 2. Nc3 Bb7 3. Nf3 c5 4. d4 cxd4 5. Nxd4 a6 6. e4 d6 7. Be3 Nf6 8. f3 Nbd7 9. Be2 e6 10. O-O Be7 11. Qd2 O-O 12. Rac1 Rc8 13. Rfd1 Qc7 14. a3 Rfd8 15. b4 Qb8 16. Nb3 Ba8 17. Bf4 Ne5 18. Bxe5 dxe5 19. Qe3 Rxd1+ 20. Rxd1 a5 21. Na2 Qc7 22. Qc3 axb4 23. axb4 Nd7 24. Nac1 f5 25. Nd2 Nf6 26. Bd3 g6 27. Ne2 Bb7 28. Ng3 Kf7 29. Kf1 Bd6 30. Qb3 Ke7 31. Ke2 Qd7 32. Rb1 Ba6 33. Ra1 Ra8 34. b5 Bb7 35. Rxa8 Bxa8 36. Qa4 Qb7 37. Nb3 Nd7 38. Nf1 Bc5 39. Nfd2 Qb8 40. Qa2 Bb7 41. Qa1 Bb4 42. Qa2 Bc5 43. Qa1 1/2-1/2

[Event "XVII Orsha-2019 Open"]
[Site "Orsha"]
[Date "2019.01.22"]
[Round "7"]
[White "Lazavik, Denis"]
[Black "Kuleshov, Konstantin"]
[Result "1-0"]
[ECO "A80"]
[WhiteElo "2296"]
[BlackElo "2098"]
[Annotator "NA"]
[PlyCount "157"]
[EventDate "2019.01.18"]
[EventType "swiss"]
[EventCountry "BLR"]
[SourceTitle "playchess.com"]
[Source "ChessBase"]
[SourceQuality "1"]
[TimeControl "5400+30"]

1. d4 {[%emt 0:00:00]} f5 {[%emt 0:00:00]} 2. Nf3 {[%emt 0:00:00]} Nf6 {[%emt 0:00:00]} 3. g3 {[%emt 0:00:31]} g6 {[%emt 0:00:00]} 4. Bg2 {[%emt 0:00:26]} Bg7 {[%emt 0:00:00]} 5. O-O {[%emt 0:00:13]} O-O {[%emt 0:00:01]} 6. b3 {[%emt 0:00:28]} d6 {[%emt 0:00:17]} 7. Bb2 {[%emt 0:00:26]} c6 {[%emt 0:01:00]} 8. c4 {[%emt 0:01:48]} Qc7 {[%emt 0:03:47]} 9. Nbd2 {[%emt 0:01:49]} Re8 {[%emt 0:01:12]} 10. Qc2 {[%emt 0:10:47] A87: Dutch Defence: Leningrad System: 5 Nf3} (10. Re1 e5 11. dxe5 dxe5 12. e4 fxe4 13. Nxe4 Nxe4 14. Rxe4 Na6 15. Qe2 Bf5 16. Re3 e4 17. Nh4 Nc5 18. Bxg7 Qxg7 {½-½ (71) Bekker Jensen,S (2482)-Beukema,S (2396) Batumi 2018}) 10... e5 {[%emt 0:00:43]} 11. dxe5 {[%emt 0:00:39] LiveBook: 6 Games} (11. e4 $11) 11... dxe5 {[%emt 0:00:05]} 12. e4 {[%emt 0:00:41]} c5 {[%emt 0:10:27]} 13. Ne1 $146 {[%emt 0:26:21]} ({Predecessor:} 13. Rae1 Nc6 14. a3 a5 15. Qb1 Bd7 16. Bc3 Nd4 {½-½ (24) Wenninger,P (2330)-Meulner,F (2066) Willingen 2017}) 13... Nc6 {[%emt 0:02:38]} 14. Nd3 {[%emt 0:03:24]} Nd4 {[%emt 0:00:47]} 15. Bxd4 {[%emt 0:00:11]} exd4 {[%emt 0:00:09]} 16. Rfe1 {[%emt 0:02:56]} a5 {[%emt 0:04:33]} 17. e5 {[%emt 0:01:40]} Ng4 {[%emt 0:00:18]} 18. h3 {[%emt 0:00:27]} Nh6 {[%emt 0:02:01]} 19. f4 {[%emt 0:00:53]} Nf7 {[%emt 0:01:21]} 20. a4 {[%emt 0:01:43]} Be6 {[%emt 0:02:57]} 21. Bd5 {[%emt 0:00:29]} Rad8 {[%emt 0:00:11]} 22. Bxe6 {[%emt 0:00:10]} Rxe6 {[%emt 0:00:04]} 23. Nf3 {[%emt 0:00:12]} Bf8 {[%emt 0:01:48]} 24. Qg2 {[%emt 0:03:28]} Be7 {[%emt 0:02:56]} 25. g4 {[%emt 0:04:59]} Nh6 {[%emt 0:00:15]} 26. Kf2 {[%emt 0:00:49]} Rf8 {[%emt 0:03:21]} 27. Ke2 {[%emt 0:02:19]} Rb6 {[%emt 0:00:30]} 28. Rab1 {[%emt 0:00:41]} Qd7 {[%emt 0:00:18]} 29. Rg1 {[%emt 0:01:02]} Kf7 {[%emt 0:01:34]} 30. Kd2 {[%emt 0:04:07]} Ke8 {[%emt 0:00:55]} 31. Kc2 {[%emt 0:00:25]} Rc6 {[%emt 0:03:31]} 32. Rbe1 {[%emt 0:03:24]} Kd8 {[%emt 0:04:49]} 33. Ng5 {[%emt 0:07:27]} Bxg5 {[%emt 0:07:07]} 34. fxg5 {[%emt 0:00:09]} Ng8 {[%emt 0:00:05]} 35. e6 $1 {[%emt 0:01:13]} Qc7 {[%emt 0:00:49]} 36. Rgf1 {[%emt 0:04:56]} Ne7 {[%emt 0:01:19]} 37. Qf2 {[%emt 0:01:13]} Kc8 {[%emt 0:00:49]} 38. Qh4 {[%emt 0:00:44]} Rh8 {[%emt 0:01:10]} 39. Qh6 {[%emt 0:00:47]} Rd6 {[%emt 0:04:13]} 40. Qg7 {[%emt 0:02:48]} Rdd8 {[%emt 0:00:19]} 41. Qe5 {[%emt 0:01:09]} b6 {[%emt 0:01:34]} 42. gxf5 {[%emt 0:03:09]} Nxf5 {[%emt 0:02:22]} 43. Rxf5 {[%emt 0:00:12]} gxf5 {[%emt 0:00:06]} 44. e7 {[%emt 0:00:52]} Rde8 {[%emt 0:00:42]} 45. Qxf5+ {[%emt 0:00:17]} Kb7 {[%emt 0:00:54]} 46. Qf6 $2 {[%emt 0:03:37]} (46. Re5 $18) 46... Qh2+ {[%emt 0:03:10]} 47. Kb1 {[%emt 0:04:33]} Qd2 {[%emt 0:01:13]} 48. Qf3+ {[%emt 0:00:35]} Ka7 {[%emt 0:00:25]} 49. Re2 {[%emt 0:01:15]} Qxg5 {[%emt 0:00:27]} 50. Ne5 {[%emt 0:00:33]} Rhg8 {[%emt 0:01:52]} 51. Ka2 {[%emt 0:01:30]} Ka6 {[%emt 0:02:46]} 52. Nf7 {[%emt 0:00:55]} Qg3 {[%emt 0:01:52]} 53. Qc6 {[%emt 0:00:29]} Qd3 {[%emt 0:01:57]} 54. Qb5+ {[%emt 0:00:07]} Ka7 {[%emt 0:00:15]} 55. Qd7+ {[%emt 0:00:04]} Ka6 {[%emt 0:00:09]} 56. Qb5+ {[%emt 0:00:54]} Ka7 {[%emt 0:00:06]} 57. Qd7+ {[%emt 0:00:04]} Ka6 {[%emt 0:00:05]} 58. Rb2 $11 {[%emt 0:01:25]} Qe3 {[%emt 0:02:48]} 59. Nd8 {[%emt 0:00:22]} Qe4 {[%emt 0:04:48]} 60. Qc8+ {[%emt 0:00:05]} Ka7 {[%emt 0:00:04]} 61. Nc6+ {[%emt 0:00:05]} Qxc6 {[%emt 0:00:04]} 62. Qxc6 {[%emt 0:00:04]} Rxe7 {[%emt 0:00:06]} 63. Rf2 {[%emt 0:00:29]} Rd8 {[%emt 0:00:28]} 64. Rf6 {[%emt 0:00:14]} Rb7 {[%emt 0:00:10]} 65. Rd6 {[%emt 0:00:04]} Rxd6 {[%emt 0:00:07]} 66. Qxd6 {[%emt 0:00:04]} Rg7 {[%emt 0:00:40]} 67. h4 {[%emt 0:00:09]} Kb7 {[%emt 0:00:27]} 68. h5 {[%emt 0:00:24]} Rc7 {[%emt 0:00:07]} 69. h6 {[%emt 0:00:06]} Rc8 {[%emt 0:00:19]} 70. Kb2 {[%emt 0:00:24]} Rc7 {[%emt 0:01:16]} 71. Kc2 {[%emt 0:00:09]} Rc8 {[%emt 0:00:05]} 72. Kd3 {[%emt 0:00:09]} Rc7 {[%emt 0:00:04]} 73. Ke4 {[%emt 0:00:21]} Rc8 {[%emt 0:00:06]} 74. Kf5 {[%emt 0:00:20]} Rc7 {[%emt 0:00:07]} 75. Qd5+ {[%emt 0:00:09]} Ka7 {[%emt 0:00:32]} 76. Ke6 {[%emt 0:00:15]} Rb7 {[%emt 0:00:26]} 77. Kd6 {[%emt 0:00:10]} Kb8 {[%emt 0:00:17]} 78. Kc6 {[%emt 0:00:41]} Ka7 {[%emt 0:00:05]} 79. Qg8 {[%emt 0:00:14]} 1-0

[Event "XVII Orsha-2019 Open"]
[Site "Orsha"]
[Date "2019.01.22"]
[Round "7"]
[White "Siniauski, Artsiom"]
[Black "Tihonov, Jurij"]
[Result "0-1"]
[ECO "B52"]
[WhiteElo "2182"]
[BlackElo "2399"]
[Annotator "NA"]
[PlyCount "109"]
[EventDate "2019.01.18"]
[EventType "swiss"]
[EventCountry "BLR"]
[SourceTitle "playchess.com"]
[Source "ChessBase"]
[SourceQuality "1"]
[TimeControl "5400+30"]

1. e4 {[%emt 0:00:00]} c5 {[%emt 0:00:00]} 2. Nf3 {[%emt 0:00:00]} d6 {[%emt 0:00:00]} 3. Bb5+ {[%emt 0:00:03]} Bd7 {[%emt 0:01:26]} 4. Bxd7+ {[%emt 0:00:11]} Nxd7 {[%emt 0:00:56]} 5. O-O {[%emt 0:00:35]} Ngf6 {[%emt 0:00:04] LiveBook: 1239 Games} 6. Qe2 {[%emt 0:00:39]} e6 {[%emt 0:00:11]} 7. b3 {[%emt 0:00:39]} g6 {[%emt 0:00:19] B50: Sicilian: 2...d6, Miscellaneous} 8. Bb2 {[%emt 0:00:22]} Bg7 {[%emt 0:00:07]} 9. c4 {[%emt 0:00:39]} O-O {[%emt 0:00:51]} 10. Rd1 $146 {[%emt 0:01:19]} ({Predecessor:} 10. d4 cxd4 11. Nxd4 a6 12. Nc3 Re8 13. Rad1 Qb6 14. Ba1 Rad8 15. Nf3 Nc5 16. Rfe1 h6 17. g3 Qc7 18. Bb2 Qb6 19. Ba1 Qc7 20. Bb2 Qb6 {½-½ (20) Anand,V (2779)-Grischuk,A (2737) Doha 2016}) 10... d5 {[%emt 0:24:19]} 11. e5 {[%emt 0:12:50]} Ne8 {[%emt 0:10:54]} (11... Nh5 $11 {keeps the balance.}) 12. cxd5 {[%emt 0:04:50]} ({White should play} 12. d4 $16) 12... exd5 {[%emt 0:00:13]} 13. d4 {[%emt 0:00:10]} Nc7 {[%emt 0:06:56]} 14. dxc5 {[%emt 0:01:15]} Re8 {[%emt 0:11:23]} 15. b4 {[%emt 0:17:11]} g5 {[%emt 0:03:58]} 16. h3 {[%emt 0:05:29]} f5 {[%emt 0:02:42]} 17. Nc3 {[%emt 0:21:15]} g4 {[%emt 0:11:15]} 18. Nxd5 {[%emt 0:00:55]} gxf3 {[%emt 0:00:09]} 19. Qc4 {[%emt 0:00:08]} Ne6 {[%emt 0:16:24] [#]} 20. Nf4 $2 {[%emt 0:01:42]} (20. Nf6+ $1 $18 {[%mdl 512]} Bxf6 (20... Nxf6 21. Rxd8) 21. exf6) 20... Qg5 {[%emt 0:00:13]} 21. g3 {[%emt 0:01:06]} Ndf8 {[%emt 0:00:05]} 22. Rd6 {[%emt 0:00:15]} Qe7 {[%emt 0:01:10]} 23. Nd5 {[%emt 0:04:29]} Qf7 {[%emt 0:00:19]} 24. Nf6+ {[%emt 0:01:38]} Bxf6 {[%emt 0:00:24]} 25. exf6 {[%emt 0:00:06]} Ng5 {[%emt 0:02:03]} 26. Qh4 {[%emt 0:03:11]} Ne4 {[%emt 0:00:46]} 27. Rd3 {[%emt 0:00:06]} Ng6 {[%emt 0:00:45]} 28. Qh6 $17 {[%emt 0:01:30]} f4 {[%emt 0:04:17]} 29. Rad1 {[%emt 0:01:57]} Nxf6 {[%emt 0:01:25]} 30. Rxf3 {[%emt 0:10:20]} Rad8 {[%emt 0:00:27]} 31. Rf1 {[%emt 0:01:02]} Rd5 {[%emt 0:00:30]} 32. Bxf6 {[%emt 0:02:31]} Qxf6 {[%emt 0:00:05]} 33. Rxf4 {[%emt 0:00:18]} Qg7 {[%emt 0:00:27]} 34. Qxg7+ {[%emt 0:00:14]} Kxg7 {[%emt 0:00:05]} 35. Rc4 {[%emt 0:00:22]} Re2 {[%emt 0:00:46]} 36. a4 {[%emt 0:00:14]} Ne5 {[%emt 0:00:31]} 37. Rc3 {[%emt 0:01:21]} Rd3 {[%emt 0:01:17]} 38. Rxd3 {[%emt 0:02:15]} Nxd3 {[%emt 0:00:02]} 39. Rd1 {[%emt 0:01:25]} Re1+ {[%emt 0:00:51]} 40. Rxe1 {[%emt 0:00:04]} Nxe1 {[%emt 0:00:04]} 41. b5 {[%emt 0:00:15]} Kf6 {[%emt 0:01:13]} 42. a5 {[%emt 0:01:54]} Nf3+ {[%emt 0:00:28]} 43. Kg2 {[%emt 0:00:13]} Ne5 {[%emt 0:00:20]} 44. c6 {[%emt 0:02:36]} bxc6 {[%emt 0:00:19]} 45. b6 {[%emt 0:00:03]} a6 {[%emt 0:00:23]} 46. f4 {[%emt 0:00:04]} Nd7 {[%emt 0:00:15]} 47. Kf3 {[%emt 0:00:14]} Nc5 {[%emt 0:00:35]} 48. g4 {[%emt 0:03:11]} Nb7 {[%emt 0:00:13]} 49. Ke4 {[%emt 0:00:04]} Nxa5 {[%emt 0:00:26]} 50. g5+ {[%emt 0:00:05]} Kf7 {[%emt 0:01:32]} 51. h4 {[%emt 0:01:41]} Nc4 {[%emt 0:00:24]} 52. h5 {[%emt 0:00:20]} Nxb6 {[%emt 0:00:06]} 53. f5 {[%emt 0:00:04]} Nd7 {[%emt 0:00:23]} 54. h6 {[%emt 0:00:29]} a5 {[%emt 0:00:15]} 55. Kd4 0-1

[Event "XVII Orsha-2019 Open"]
[Site "Orsha"]
[Date "2019.01.22"]
[Round "7"]
[White "Vashchilov, Sergey"]
[Black "Krylov, Ivan"]
[Result "0-1"]
[ECO "B12"]
[WhiteElo "2134"]
[BlackElo "2441"]
[Annotator "ChessBase"]
[PlyCount "82"]
[EventDate "2019.01.18"]
[EventType "swiss"]
[EventCountry "BLR"]
[SourceTitle "playchess.com"]
[Source "ChessBase"]
[SourceQuality "1"]
[TimeControl "5400+30"]

1. e4 {[%emt 0:06:15]} c6 {[%emt 0:00:20]} 2. d4 {[%emt 0:01:04]} g6 {[%emt 0:00:09]} 3. Nf3 {[%emt 0:02:43]} d5 {[%emt 0:00:41]} 4. Nc3 {[%emt 0:03:57]} Bg7 {[%emt 0:00:48]} 5. e5 {[%emt 0:01:40]} Bg4 {[%emt 0:00:14]} 6. h3 {[%emt 0:04:45]} Bxf3 {[%emt 0:00:09]} 7. Qxf3 {[%emt 0:00:28]} e6 {[%emt 0:01:43]} 8. Be3 {[%emt 0:07:14]} Nd7 {[%emt 0:02:43]} 9. O-O-O {[%emt 0:02:29]} Ne7 {[%emt 0:01:52]} 10. g4 {[%emt 0:00:22]} b5 {[%emt 0:02:32]} 11. Kb1 {[%emt 0:05:58]} b4 {[%emt 0:05:07]} 12. Na4 {[%emt 0:00:39]} Qa5 {[%emt 0:00:55]} 13. b3 {[%emt 0:01:04]} c5 {[%emt 0:05:50]} 14. dxc5 {[%emt 0:00:46]} Bxe5 {[%emt 0:04:35]} 15. Qe2 {[%emt 0:03:50]} Rc8 {[%emt 0:09:43]} 16. f4 {[%emt 0:05:55]} Bg7 {[%emt 0:02:38]} 17. Bg2 {[%emt 0:00:30]} O-O {[%emt 0:03:09]} 18. Rhf1 {[%emt 0:04:54]} Nxc5 {[%emt 0:07:46]} 19. Nxc5 {[%emt 0:05:21]} Rxc5 {[%emt 0:03:02]} 20. Bxc5 {[%emt 0:00:06]} Qxc5 {[%emt 0:00:06]} 21. Rd3 {[%emt 0:04:05]} Rc8 {[%emt 0:00:32]} 22. f5 {[%emt 0:03:10]} exf5 {[%emt 0:01:13]} 23. gxf5 {[%emt 0:00:18]} Nxf5 {[%emt 0:01:47]} 24. Rxf5 {[%emt 0:00:21]} gxf5 {[%emt 0:00:13]} 25. Bxd5 {[%emt 0:00:31]} Qg1+ {[%emt 0:02:38]} 26. Rd1 {[%emt 0:00:46]} Qg5 {[%emt 0:01:50]} 27. Qa6 {[%emt 0:03:22]} Rf8 {[%emt 0:05:40]} 28. a3 {[%emt 0:07:01]} Qe3 {[%emt 0:11:37]} 29. axb4 {[%emt 0:02:10]} Qc3 {[%emt 0:00:07]} 30. Qa3 {[%emt 0:00:30]} Rc8 {[%emt 0:01:44]} 31. Qa2 {[%emt 0:02:29]} f4 {[%emt 0:00:33]} 32. Rf1 {[%emt 0:04:49]} Re8 {[%emt 0:02:02]} 33. Qa3 {[%emt 0:01:47]} h6 {[%emt 0:02:21]} 34. b5 {[%emt 0:04:45]} Re2 {[%emt 0:00:31]} 35. Rc1 {[%emt 0:00:38]} Bd4 {[%emt 0:00:31]} 36. Bc4 Rd2 {[%emt 0:00:32]} 37. Bd3 {[%emt 0:03:06]} f3 {[%emt 0:00:39]} 38. Re1 {[%emt 0:00:42]} Kg7 {[%emt 0:00:35]} 39. Rc1 {[%emt 0:01:23]} Rxd3 {[%emt 0:02:23]} 40. cxd3 {[%emt 0:00:23]} Qxd3+ {[%emt 0:00:06]} 41. Ka2 {[%emt 0:00:47]} Qe2+ {[%emt 0:00:48]} 0-1

[Event "XVII Orsha-2019 Open"]
[Site "Orsha"]
[Date "2019.01.22"]
[Round "7"]
[White "Silich, Yahor"]
[Black "Mihajlovskij, Sergei"]
[Result "1/2-1/2"]
[ECO "B06"]
[WhiteElo "2116"]
[BlackElo "2406"]
[Annotator "ChessBase"]
[PlyCount "135"]
[EventDate "2019.01.18"]
[EventType "swiss"]
[EventCountry "BLR"]
[SourceTitle "playchess.com"]
[Source "ChessBase"]
[SourceQuality "1"]
[TimeControl "5400+30"]

1. e4 {[%emt 0:00:00]} g6 {[%emt 0:00:34]} 2. d4 {[%emt 0:00:06]} Bg7 {[%emt 0:00:06]} 3. Nf3 {[%emt 0:00:31]} d6 {[%emt 0:00:05]} 4. Nc3 {[%emt 0:00:57]} a6 {[%emt 0:01:46]} 5. Be3 {[%emt 0:03:02]} b5 {[%emt 0:03:12]} 6. a4 {[%emt 0:02:09]} b4 {[%emt 0:00:54]} 7. Nb1 {[%emt 0:00:51]} Nf6 {[%emt 0:02:21]} 8. Bd3 {[%emt 0:02:05]} Nbd7 {[%emt 0:11:21]} 9. O-O {[%emt 0:04:37]} O-O {[%emt 0:30:02]} 10. c3 {[%emt 0:04:25]} bxc3 {[%emt 0:02:12]} 11. bxc3 {[%emt 0:00:34]} c5 {[%emt 0:00:55]} 12. Nbd2 {[%emt 0:03:58]} Qc7 {[%emt 0:03:02]} 13. h3 {[%emt 0:02:51]} Bb7 {[%emt 0:05:29]} 14. Qe2 {[%emt 0:02:06]} e6 {[%emt 0:00:58]} 15. Rab1 {[%emt 0:02:06]} Bc6 {[%emt 0:00:43]} 16. Bf4 {[%emt 0:20:25]} Bxa4 {[%emt 0:09:22]} 17. Bxa6 {[%emt 0:09:17]} Bc6 {[%emt 0:01:35]} 18. Bb5 {[%emt 0:05:30]} Rfc8 {[%emt 0:06:23]} 19. Rfe1 {[%emt 0:05:26]} Bxb5 {[%emt 0:05:47]} 20. Qxb5 {[%emt 0:05:34]} Rcb8 {[%emt 0:00:17]} 21. Qd3 {[%emt 0:01:11]} Rxb1 {[%emt 0:01:14]} 22. Rxb1 {[%emt 0:00:27]} Qc6 {[%emt 0:01:42]} 23. Qb5 {[%emt 0:01:52]} Qxb5 {[%emt 0:00:49]} 24. Rxb5 {[%emt 0:00:01]} cxd4 {[%emt 0:06:04]} 25. cxd4 {[%emt 0:00:52]} Bf8 {[%emt 0:01:23]} 26. Kf1 {[%emt 0:02:23]} h6 {[%emt 0:00:36]} 27. Ke2 {[%emt 0:01:19]} g5 {[%emt 0:00:51]} 28. Be3 {[%emt 0:01:00]} Kg7 {[%emt 0:00:55]} 29. Rb7 {[%emt 0:01:03]} Nb8 {[%emt 0:01:04]} 30. Rb6 {[%emt 0:11:09]} Na6 {[%emt 0:01:13]} 31. Rb7 {[%emt 0:02:58]} Rb8 {[%emt 0:00:48]} 32. Rxb8 {[%emt 0:00:42]} Nxb8 {[%emt 0:00:02]} 33. Ne1 {[%emt 0:02:08]} d5 {[%emt 0:00:15]} 34. e5 {[%emt 0:01:22]} Nfd7 {[%emt 0:00:17]} 35. Nd3 {[%emt 0:00:19]} Nc6 {[%emt 0:00:06]} 36. f4 {[%emt 0:00:09]} gxf4 {[%emt 0:01:37]} 37. Nxf4 {[%emt 0:00:02]} Be7 {[%emt 0:01:09]} 38. Nf3 {[%emt 0:00:50]} Bd8 {[%emt 0:00:25]} 39. g4 {[%emt 0:01:01]} Nf8 {[%emt 0:00:33]} 40. h4 {[%emt 0:01:12]} Ng6 {[%emt 0:00:24]} 41. Nh5+ {[%emt 0:01:21]} Kh7 {[%emt 0:00:06]} 42. Bf2 {[%emt 0:00:36]} Nb8 {[%emt 0:00:58]} 43. g5 {[%emt 0:00:28]} hxg5 {[%emt 0:00:20]} 44. Nxg5+ {[%emt 0:00:23]} Bxg5 {[%emt 0:00:33]} 45. hxg5 {[%emt 0:00:00]} Ne7 {[%emt 0:00:20]} 46. Nf4 {[%emt 0:00:40]} Nbc6 {[%emt 0:00:09]} 47. Kd3 {[%emt 0:00:29]} Kg7 {[%emt 0:00:15]} 48. Bg1 {[%emt 0:00:33]} Ng6 {[%emt 0:00:21]} 49. Nh5+ {[%emt 0:00:19]} Kf8 {[%emt 0:00:44]} 50. Be3 {[%emt 0:00:39]} Nh4 {[%emt 0:00:11]} 51. Nf4 {[%emt 0:00:27]} Kg7 {[%emt 0:00:06]} 52. Bf2 {[%emt 0:00:22]} Nf3 {[%emt 0:00:30]} 53. g6 {[%emt 0:00:46]} Nfxe5+ {[%emt 0:01:13]} 54. dxe5 {[%emt 0:00:30]} Nxe5+ {[%emt 0:00:11]} 55. Ke2 {[%emt 0:00:53]} Nxg6 {[%emt 0:00:06]} 56. Bd4+ {[%emt 0:00:27]} Kh6 {[%emt 0:00:22]} 57. Nxg6 {[%emt 0:00:29]} Kxg6 {[%emt 0:01:01]} 58. Kf3 {[%emt 0:00:23]} Kf5 {[%emt 0:00:02]} 59. Bb2 {[%emt 0:00:41]} e5 {[%emt 0:00:04]} 60. Ke3 {[%emt 0:00:12]} d4+ {[%emt 0:00:40]} 61. Kd3 {[%emt 0:00:05]} Ke6 {[%emt 0:00:11]} 62. Ke4 {[%emt 0:01:01]} f5+ {[%emt 0:00:05]} 63. Kf3 {[%emt 0:00:01]} Kd5 {[%emt 0:00:08]} 64. Ba3 {[%emt 0:00:59]} Kc4 {[%emt 0:00:29]} 65. Bd6 {[%emt 0:00:21]} Kd5 {[%emt 0:02:52]} 66. Bc7 {[%emt 0:00:40]} f4 {[%emt 0:00:05]} 67. Ba5 {[%emt 0:00:42]} d3 {[%emt 0:00:33]} 68. Bc3 {[%emt 0:00:11]} 1/2-1/2